bitfinex-derivatives/quotes_SOLF0:USTF0_20250425
["timestamp","ask_amount","ask_price","bid_price","bid_amount"]
[1745567186334,23.24,153.63,153.59,11.64574247]
[1745567186533,6.5075,153.62,153.59,5.13734247]
[1745567186934,6.5075,153.62,153.59,11.64584247]
[1745567187136,6.5079,153.61,153.59,11.64584247]
[1745567187334,6.5079,153.61,153.58,5.13734247]
[1745567187533,6.5079,153.61,153.58,11.64624247]
[1745567187934,6.5079,153.61,153.58,5.13734247]
[1745567188934,23.24,153.63,153.6,5.13734247]
[1745567189134,28.35734247,153.66,153.6,5.13734247]
[1745567189435,6.5069,153.64,153.61,6.5076]
[1745567189833,5.13734247,153.64,153.58,5.13734247]
[1745567190038,5.13734247,153.64,153.58,11.64614247]
[1745567190336,5.13734247,153.64,153.58,5.13734247]
[1745567190533,6.5077,153.62,153.59,6.5085]
[1745567190731,5.13734247,153.64,153.59,6.5085]
[1745567191238,5.13734247,153.62,153.58,5.13734247]
[1745567191934,11.64484247,153.62,153.58,5.13734247]
[1745567192141,6.5075,153.62,153.58,5.13734247]
[1745567192440,6.5075,153.62,153.59,6.5085]
[1745567194140,6.5079,153.61,153.59,6.5085]
[1745567194343,5.13734247,153.62,153.56,5.13734247]
[1745567194543,5.13734247,153.6,153.55,28.37734247]
[1745567194739,6.5094,153.58,153.55,5.13734247]
[1745567195143,6.5094,153.58,153.55,11.64754247]
[1745567195444,6.5096,153.57,153.55,11.64754247]
[1745567195843,5.13734247,153.58,153.53,5.13734247]
[1745567196543,6.5098,153.57,153.55,6.5103]
[1745567197852,2.0262,153.62,153.55,5.13734247]
[1745567198147,5.13734247,153.67,153.6,5.13734247]
[1745567198444,6.5069,153.64,153.61,6.5076]
[1745567198646,23.24,153.68,153.62,5.13734247]
[1745567198845,23.24,153.68,153.65,5.13734247]
[1745567199347,23.24,153.68,153.61,8.00653528]
[1745567199542,6.506,153.66,153.63,6.5068]
[1745567200248,6.5063,153.65,153.63,6.5068]
[1745567200447,6.5063,153.65,153.62,6.5072]
[1745567201143,23.24,153.68,153.59,8.00653528]
[1745567201448,8.00653528,153.67,153.58,23.24]
[1745567201746,6.5076,153.62,153.59,6.5085]
[1745567201939,23.22,153.64,153.58,23.24]
[1745567202142,23.22,153.64,153.55,31.22653528]
[1745567202346,6.5081,153.61,153.58,6.5089]
[1745567202950,6.5081,153.61,153.59,6.5086]
[1745567203249,6.5076,153.62,153.55,31.22653528]
[1745567203848,6.5071,153.63,153.55,31.22653528]
[1745567204149,26.9974,153.64,153.6,6.5081]
[1745567204447,6.5074,153.63,153.6,6.5081]
[1745567204647,26.9974,153.64,153.6,6.5081]
[1745567205549,26.9974,153.64,153.61,6.5077]
[1745567205746,23.22,153.67,153.59,31.22653528]
[1745567205950,1.9612,153.69,153.63,8.00653528]
[1745567206350,6.5054,153.67,153.64,6.5064]
[1745567206648,1.9612,153.69,153.63,8.00653528]
[1745567206951,6.5051,153.68,153.65,6.506]
[1745567207147,1.9612,153.69,153.63,8.00653528]
[1745567207348,13.0041,153.75,153.67,8.00653528]
[1745567207349,23.22,153.73,153.67,8.00653528]
[1745567207841,6.5033,153.72,153.69,6.5042]
[1745567209155,6.5036,153.71,153.68,6.5047]
[1745567209451,23.22,153.73,153.68,6.5047]
[1745567210154,23.22,153.73,153.67,14.51183528]
[1745567210454,6.5047,153.69,153.65,8.00653528]
[1745567210653,6.5047,153.69,153.64,23.22]
[1745567210850,6.5047,153.69,153.66,6.5055]
[1745567211056,6.5061,153.66,153.55,36.17521199]
[1745567211356,23.22,153.69,153.6,8.00653528]
[1745567211659,6.505,153.68,153.6,8.00653528]
[1745567211956,6.505,153.68,153.64,6.5064]
[1745567212156,23.22,153.69,153.62,31.26653528]
[1745567212457,23.22,153.69,153.64,6.5063]
[1745567212657,6.5054,153.67,153.64,6.5063]
[1745567213162,6.5054,153.67,153.62,31.26653528]
[1745567214162,6.5054,153.67,153.64,6.5062]
[1745567214359,25.1536,153.74,153.62,31.26653528]
[1745567214552,25.1536,153.74,153.66,8.00653528]
[1745567214754,25.1536,153.74,153.69,6.5042]
[1745567214958,25.1536,153.74,153.66,31.26653528]
[1745567215363,25.1536,153.74,153.67,6.505]
[1745567215564,25.1536,153.74,153.66,31.26653528]
[1745567216666,6.5032,153.72,153.69,6.5042]
[1745567217567,6.503,153.73,153.69,6.5042]
[1745567217965,6.503,153.73,153.7,6.504]
[1745567218466,6.5032,153.72,153.66,31.26653528]
[1745567218667,25.1536,153.74,153.66,31.26653528]
[1745567219167,23.26,153.74,153.69,6.5042]
[1745567219562,6.5035,153.72,153.69,6.5042]
[1745567220169,23.26,153.74,153.66,31.26653528]
[1745567220468,2.0099,153.77,153.66,31.26653528]
[1745567220469,25.2699,153.77,153.68,8.00653528]
[1745567220668,6.5022,153.75,153.73,6.5027]
[1745567221165,23.26,153.77,153.7,8.00653528]
[1745567221468,23.26,153.8,153.72,8.00653528]
[1745567221968,6.5007,153.78,153.74,6.502]
[1745567222169,6.5007,153.78,153.72,8.00653528]
[1745567222368,23.26,153.8,153.72,8.00653528]
[1745567222568,6.5005,153.79,153.75,6.5017]
[1745567222768,23.26,153.8,153.75,6.5017]
[1745567223168,6.501,153.78,153.74,6.5022]
[1745567223372,6.501,153.78,153.72,8.00653528]
[1745567223569,3.8272,153.82,153.74,8.00653528]
[1745567223773,3.8272,153.82,153.75,23.24]
[1745567224974,6.4999,153.8,153.77,6.5009]
[1745567225378,3.8272,153.82,153.75,23.24]
[1745567225565,3.8272,153.82,153.76,6.5013]
[1745567225865,3.8272,153.82,153.75,23.24]
[1745567226078,6.5009,153.78,153.75,29.7419]
[1745567226374,3.8272,153.82,153.75,23.24]
[1745567227069,3.8272,153.82,153.75,29.7417]
[1745567227976,6.5009,153.78,153.75,29.7417]
[1745567228174,3.8272,153.82,153.76,6.5015]
[1745567228374,3.8272,153.82,153.75,23.24]
[1745567228874,3.8272,153.82,153.75,29.7417]
[1745567229474,3.8272,153.82,153.75,23.24]
[1745567230075,6.5008,153.78,153.75,29.7417]
[1745567230675,6.5012,153.77,153.75,29.7417]
[1745567231474,6.5008,153.78,153.75,29.7417]
[1745567231775,6.5008,153.78,153.75,23.24]
[1745567232075,6.5008,153.78,153.75,29.7416]
[1745567233076,3.8272,153.82,153.74,14.50873528]
[1745567233577,6.5013,153.77,153.74,14.50873528]
[1745567233775,23.24,153.79,153.73,6.5026]
[1745567234077,6.5017,153.76,153.73,6.5026]
[1745567234276,23.24,153.79,153.72,23.24]
[1745567234682,6.5018,153.76,153.72,23.24]
[1745567235379,8.00653528,153.81,153.72,31.24653528]
[1745567235579,27.0672,153.82,153.72,31.24653528]
[1745567235775,27.0672,153.82,153.75,6.5019]
[1745567236277,27.0672,153.82,153.72,31.24653528]
[1745567236979,6.5003,153.79,153.72,31.24653528]
[1745567237574,6.5003,153.79,153.76,6.5013]
[1745567237777,23.24,153.82,153.74,8.00653528]
[1745567238274,6.4996,153.81,153.78,6.5004]
[1745567238683,6.4996,153.81,153.78,6.5003]
[1745567239582,29.7391,153.82,153.76,8.00653528]
[1745567239777,23.24,153.82,153.76,8.00653528]
[1745567239980,6.4997,153.81,153.78,6.5005]
[1745567240280,23.24,153.82,153.76,31.24653528]
[1745567240480,29.7393,153.82,153.79,6.5]
[1745567240680,23.24,153.82,153.79,6.5]
[1745567240882,23.24,153.82,153.76,31.24653528]
[1745567241082,6.4997,153.81,153.78,6.5005]
[1745567241283,6.4997,153.81,153.76,31.24653528]
[1745567241479,23.24,153.82,153.76,31.24653528]
[1745567241681,6.4996,153.81,153.79,6.5]
[1745567242276,31.34653528,153.85,153.82,6.499]
[1745567242277,6.4984,153.84,153.82,6.499]
[1745567242684,6.4987,153.83,153.8,6.4995]
[1745567242984,6.4987,153.83,153.78,8.00653528]
[1745567243485,6.4987,153.83,153.81,6.4992]
[1745567244185,6.4991,153.82,153.8,6.4996]
[1745567244882,23.34,153.85,153.79,6.5001]
[1745567245082,23.34,153.85,153.76,31.24653528]
[1745567245786,6.4998,153.81,153.78,6.5004]
[1745567245986,23.34,153.85,153.78,6.5004]
[1745567246883,31.34653528,153.85,153.78,6.5004]
[1745567247386,6.5001,153.8,153.78,6.5004]
[1745567247583,6.5001,153.8,153.77,6.501]
[1745567249087,6.5001,153.8,153.78,6.5006]
[1745567249283,3.903,153.84,153.76,23.24]
[1745567249481,9.98063528,153.83,153.76,23.24]
[1745567249785,9.98063528,153.83,153.76,6.5013]
[1745567250088,6.5006,153.79,153.76,6.5013]
[1745567250787,6.5007,153.78,153.76,6.5013]
[1745567250981,9.98063528,153.83,153.77,6.501]
[1745567251490,6.5002,153.8,153.77,6.501]
[1745567252086,9.98063528,153.83,153.77,6.501]
[1745567253391,9.98063528,153.83,153.76,6.5013]
[1745567253589,9.98063528,153.83,153.74,8.00653528]
[1745567254087,9.98063528,153.83,153.77,6.5008]
[1745567254289,9.98063528,153.83,153.74,31.32653528]
[1745567254488,9.98063528,153.83,153.72,476.10653528]
[1745567254692,9.98063528,153.83,153.75,6.5017]
[1745567255092,6.501,153.78,153.75,6.5017]
[1745567255692,23.32,153.8,153.75,6.5017]
[1745567257194,23.32,153.8,153.76,6.5015]
[1745567257394,23.32,153.8,153.72,31.32653528]
[1745567258196,6.5008,153.78,153.75,6.5018]
[1745567259593,6.5012,153.77,153.75,6.5018]
[1745567259898,23.32,153.8,153.74,6.5022]
[1745567260099,23.32,153.8,153.72,31.32653528]
[1745567260298,6.5014,153.77,153.74,6.5022]
[1745567260699,23.32,153.8,153.72,31.32653528]
[1745567261298,6.5009,153.78,153.75,6.5017]
[1745567261601,6.5009,153.78,153.72,31.32653528]
[1745567261801,6.5009,153.78,153.75,6.5017]
[1745567262997,23.32,153.8,153.74,6.5022]
[1745567263602,23.32,153.8,153.73,6.5027]
[1745567263797,8.00653528,153.79,153.7,8.00653528]
[1745567264296,8.00653528,153.79,153.73,6.5028]
[1745567264493,23.32,153.8,153.7,8.00653528]
[1745567264891,6.5014,153.77,153.7,8.00653528]
[1745567265403,6.5008,153.78,153.75,6.5018]
[1745567265601,23.32,153.8,153.75,6.5018]
[1745567266899,6.5014,153.77,153.74,6.5022]
[1745567267100,6.5014,153.77,153.72,8.00653528]
[1745567267696,6.5014,153.77,153.75,6.5018]
[1745567269103,6.5014,153.77,153.74,6.5021]
[1745567271303,6.5014,153.77,153.74,11.61972241]
[1745567271499,5.11762241,153.79,153.75,6.5016]
[1745567271800,5.11762241,153.79,153.74,5.11762241]
[1745567272102,6.5009,153.78,153.75,6.5017]
[1745567272503,5.11762241,153.79,153.75,6.5017]
[1745567272703,6.501,153.78,153.75,6.5017]
[1745567273206,6.5013,153.77,153.75,6.5017]
[1745567276399,6.5009,153.78,153.75,6.5017]
[1745567276706,5.11762241,153.79,153.75,6.5017]
[1745567277004,23.32,153.8,153.78,5.11762241]
[1745567278211,25.1741,153.83,153.78,5.11762241]
[1745567278408,23.2,153.83,153.8,5.11762241]
[1745567279205,23.2,153.83,153.77,23.2]
[1745567279411,23.2,153.86,153.82,5.11762241]
[1745567279808,6.4985,153.84,153.82,5.11762241]
[1745567280210,29.6975,153.86,153.83,6.4983]
[1745567280407,23.2,153.86,153.82,5.11762241]
[1745567280812,6.4981,153.85,153.82,11.61642241]
[1745567281307,23.2,153.86,153.82,5.11762241]
[1745567281911,6.4983,153.84,153.82,5.11762241]
[1745567282707,23.2,153.86,153.82,5.11762241]
[1745567283313,6.4985,153.84,153.82,5.11762241]
[1745567283508,23.2,153.86,153.82,5.11762241]
[1745567283811,6.4984,153.84,153.82,5.11762241]
[1745567284010,6.4984,153.84,153.82,11.61652241]
[1745567284206,23.2,153.86,153.82,5.11762241]
[1745567284410,29.6976,153.86,153.83,6.4983]
[1745567284808,23.2,153.86,153.83,6.4983]
[1745567285109,29.6974,153.86,153.83,6.4983]
[1745567285312,23.2,153.89,153.84,5.11762241]
[1745567285508,6.4972,153.87,153.84,5.11762241]
[1745567285704,6.4972,153.87,153.84,11.61552241]
[1745567286617,6.4974,153.86,153.84,5.11762241]
[1745567286811,5.11762241,153.88,153.84,5.11762241]
[1745567288619,6.4977,153.85,153.82,11.61642241]
[1745567289421,5.11762241,153.88,153.82,5.11762241]
[1745567289422,6.4983,153.84,153.82,5.11762241]
[1745567289616,5.11762241,153.86,153.82,5.11762241]
[1745567290520,6.4984,153.84,153.82,5.11762241]
[1745567291520,6.4984,153.84,153.82,11.61662241]
[1745567291721,6.4984,153.84,153.82,5.11762241]
[1745567292123,6.4986,153.83,153.82,5.11762241]
[1745567292322,5.11762241,153.86,153.82,5.11762241]
[1745567292627,6.4986,153.83,153.82,5.11762241]
[1745567292926,23.2,153.85,153.81,5.11762241]
[1745567293222,23.2,153.85,153.8,5.11762241]
[1745567294125,5.11762241,153.82,153.77,11.61842241]
[1745567294628,5.11762241,153.82,153.77,5.11762241]
[1745567294826,5.11762241,153.82,153.75,28.31762241]
[1745567295027,23.2,153.81,153.75,28.31762241]
[1745567295228,6.5009,153.78,153.75,34.81922241]
[1745567295828,6.5012,153.77,153.75,34.81922241]
[1745567296125,5.11762241,153.8,153.75,34.81922241]
[1745567296322,6.5008,153.78,153.75,34.81922241]
[1745567296527,6.5008,153.78,153.76,6.5015]
[1745567297925,6.5008,153.78,153.75,34.81942241]
[1745567298126,6.5008,153.78,153.75,28.31762241]
[1745567298632,6.5008,153.78,153.75,34.81932241]
[1745567299322,6.5008,153.78,153.7,4.0188]
[1745567299323,5.11762241,153.78,153.7,4.0188]
[1745567299527,5.11762241,153.74,153.69,28.31762241]
[1745567299928,6.5032,153.72,153.69,34.82182241]
[1745567300427,6.5032,153.72,153.69,11.62182241]
[1745567300630,6.5029,153.73,153.69,11.62182241]
[1745567301029,5.11762241,153.74,153.69,11.62182241]
[1745567301226,11.62012241,153.74,153.7,6.504]
[1745567301529,13.95436429,153.76,153.66,31.20216429]
[1745567301921,6.5025,153.74,153.7,6.5037]
[1745567302528,6.5025,153.74,153.71,6.5036]
[1745567302932,13.95436429,153.76,153.66,31.20216429]
[1745567302933,6.5028,153.73,153.66,31.20216429]
[1745567303229,6.5028,153.73,153.69,6.5042]
[1745567303425,6.5028,153.73,153.66,31.20216429]
[1745567303827,6.5024,153.74,153.66,31.20216429]
[1745567304232,6.5024,153.74,153.68,8.00216429]
[1745567304834,6.5021,153.75,153.68,8.00216429]
[1745567305431,6.5025,153.74,153.68,8.00216429]
[1745567305730,5.9522,153.76,153.71,6.5034]
[1745567306032,5.9522,153.76,153.68,8.00216429]
[1745567306529,5.9522,153.76,153.7,6.5038]
[1745567307329,13.95436429,153.76,153.68,6.5046]
[1745567307534,6.504,153.71,153.66,23.2]
[1745567307739,8.00216429,153.74,153.66,23.2]
[1745567307740,23.2,153.72,153.66,23.2]
[1745567308131,6.5036,153.71,153.68,6.5047]
[1745567309635,6.5036,153.71,153.69,6.5044]
[1745567309835,29.7034,153.72,153.69,6.5044]
[1745567310036,23.2,153.72,153.66,31.20216429]
[1745567310235,23.2,153.72,153.68,6.5046]
[1745567310436,6.5038,153.71,153.68,6.5046]
[1745567311637,29.7034,153.72,153.69,6.5042]
[1745567312237,6.5037,153.71,153.69,6.5042]
[1745567313035,23.22,153.75,153.68,8.00216429]
[1745567313238,23.22,153.78,153.72,8.00216429]
[1745567314038,6.5013,153.77,153.74,6.5022]
[1745567314235,23.22,153.78,153.72,8.00216429]
[1745567314435,23.22,153.78,153.73,6.5026]
[1745567314838,6.5018,153.76,153.73,6.5026]
[1745567315036,23.22,153.78,153.74,6.502]
[1745567315235,23.22,153.78,153.72,8.00216429]
[1745567315436,29.7209,153.78,153.74,8.00216429]
[1745567315638,29.7209,153.78,153.75,6.5019]
[1745567316037,23.22,153.78,153.74,8.00216429]
[1745567316572,23.22,153.78,153.77,6.5011]
[1745567316798,6.5001,153.8,153.77,6.5011]
[1745567316941,29.0118,153.81,153.74,8.00216429]
[1745567317448,6.5005,153.79,153.74,8.00216429]
[1745567317645,29.0118,153.81,153.74,8.00216429]
[1745567317945,29.0118,153.81,153.73,6.5024]
[1745567318742,6.5014,153.77,153.73,6.5024]
[1745567319341,29.0118,153.81,153.72,8.00216429]
[1745567319538,29.0118,153.81,153.74,8.00216429]
[1745567319938,6.501,153.78,153.74,14.50426429]
[1745567320430,8.00216429,153.8,153.72,6.5031]
[1745567321037,8.00216429,153.8,153.7,31.22216429]
[1745567321038,42.0113,153.81,153.68,8.00216429]
[1745567321242,8.00216429,153.76,153.67,23.2]
[1745567321541,6.5035,153.72,153.68,6.5046]
[1745567321744,6.5035,153.72,153.67,23.2]
[1745567322541,6.503,153.73,153.67,23.2]
[1745567322742,29.1897,153.75,153.69,6.5042]
[1745567322944,6.5036,153.72,153.69,6.5042]
[1745567323142,29.1897,153.75,153.69,6.5042]
[1745567324547,29.1897,153.75,153.67,23.2]
[1745567324749,6.5044,153.7,153.64,33.18116429]
[1745567325248,6.5032,153.72,153.66,8.00216429]
[1745567325438,29.1897,153.75,153.66,8.00216429]
[1745567325642,29.1897,153.75,153.68,6.5045]
[1745567325842,6.5037,153.71,153.68,6.5045]
[1745567326045,6.5037,153.71,153.66,8.00216429]
[1745567326246,6.5037,153.71,153.69,6.5042]
[1745567326549,6.5034,153.72,153.69,6.5042]
[1745567327143,6.5036,153.71,153.68,6.5047]
[1745567327347,29.1897,153.75,153.64,33.18116429]
[1745567327646,29.1897,153.75,153.64,31.20216429]
[1745567328039,6.5043,153.7,153.67,6.505]
[1745567329152,6.5043,153.7,153.64,31.20216429]
[1745567329348,6.5048,153.69,153.64,31.20216429]
[1745567329547,6.5048,153.69,153.66,6.5054]
[1745567329744,6.5048,153.69,153.64,8.00216429]
[1745567329950,8.00216429,153.7,153.6,363.00216429]
[1745567330150,8.00216429,153.7,153.6,8.00216429]
[1745567330352,6.5056,153.67,153.64,6.5065]
[1745567331154,8.00216429,153.7,153.64,6.5065]
[1745567331556,6.5056,153.67,153.64,6.5065]
[1745567331755,8.00216429,153.7,153.64,6.5065]
[1745567332156,6.505,153.68,153.64,6.5065]
[1745567333656,6.505,153.68,153.65,6.506]
[1745567335155,6.505,153.68,153.66,6.5057]
[1745567335461,6.5047,153.69,153.67,6.5052]
[1745567336157,6.5047,153.69,153.66,6.5056]
[1745567337154,6.5049,153.68,153.65,6.506]
[1745567338558,6.5047,153.69,153.66,6.5057]
[1745567338860,23.22,153.71,153.66,6.5057]
[1745567339158,6.5047,153.69,153.66,6.5057]
[1745567339358,6.5047,153.69,153.64,8.00216429]
[1745567339958,6.5047,153.69,153.67,6.5053]
[1745567340257,23.22,153.71,153.68,8.00216429]
[1745567340559,23.22,153.74,153.69,6.5042]
[1745567340958,6.5032,153.72,153.69,6.5042]
[1745567341454,23.22,153.74,153.7,6.5037]
[1745567341662,23.22,153.74,153.68,8.00216429]
[1745567342160,29.7225,153.74,153.71,6.5033]
[1745567342561,23.22,153.74,153.68,8.00216429]
[1745567342859,23.22,153.74,153.72,6.5028]
[1745567343260,23.22,153.74,153.73,6.5028]
[1745567343460,23.22,153.74,153.7,8.00216429]
[1745567343763,23.22,153.74,153.68,8.00216429]
[1745567344259,23.22,153.74,153.66,8.00216429]
[1745567344456,6.5036,153.72,153.68,6.5045]
[1745567344962,6.5037,153.71,153.68,6.5045]
[1745567345861,6.5041,153.7,153.68,6.5045]
[1745567346363,6.5041,153.7,153.67,6.5051]
[1745567346663,6.5038,153.71,153.66,8.00216429]
[1745567347064,6.5038,153.71,153.68,6.5047]
[1745567349164,6.5041,153.7,153.68,6.5047]
[1745567350064,6.5038,153.71,153.68,6.5047]
[1745567350565,23.22,153.74,153.68,6.5047]
[1745567350760,23.22,153.74,153.7,8.00216429]
[1745567351266,29.7226,153.74,153.71,6.5035]
[1745567352064,23.22,153.74,153.72,6.5032]
[1745567352256,23.22,153.74,153.7,8.00216429]
[1745567352457,29.7226,153.74,153.71,6.5034]
[1745567352662,23.22,153.74,153.71,6.5034]
[1745567352858,23.22,153.74,153.7,8.00216429]
[1745567353067,29.7226,153.74,153.71,6.5036]
[1745567353765,23.22,153.74,153.7,14.50596429]
[1745567353966,23.22,153.74,153.68,8.00216429]
[1745567354368,6.5035,153.72,153.69,6.5045]
[1745567354868,6.503,153.73,153.7,6.504]
[1745567355070,23.22,153.74,153.7,8.00216429]
[1745567355571,6.5028,153.73,153.7,14.50596429]
[1745567357173,29.7225,153.74,153.71,6.5033]
[1745567357373,29.7225,153.74,153.7,8.00216429]
[1745567357975,6.5029,153.73,153.7,8.00216429]
[1745567358279,23.22,153.74,153.7,8.00216429]
[1745567358473,6.5034,153.72,153.69,6.5041]
[1745567358677,6.5034,153.72,153.69,14.50626429]
[1745567358976,23.22,153.74,153.68,6.5047]
[1745567358977,6.5039,153.71,153.68,6.5047]
[1745567360378,23.22,153.74,153.68,6.5047]
[1745567360572,23.22,153.74,153.67,14.50726429]
[1745567361077,6.5044,153.7,153.68,6.5046]
[1745567361373,6.5044,153.7,153.67,8.00216429]
[1745567361578,23.22,153.74,153.66,6.5057]
[1745567361781,5.9014,153.73,153.65,31.22216429]
[1745567362179,6.5043,153.7,153.67,6.5051]
[1745567363181,6.5047,153.69,153.66,6.5056]
[1745567363482,5.9014,153.73,153.65,31.22216429]
[1745567363672,5.9014,153.73,153.66,6.5057]
[1745567364177,5.9014,153.73,153.65,31.22216429]
[1745567364475,6.5047,153.69,153.66,6.5054]
[1745567364682,5.9014,153.73,153.65,31.22216429]
[1745567365083,6.5057,153.66,153.63,6.5067]
[1745567365783,6.5056,153.67,153.6,3.77]
[1745567366280,6.5061,153.66,153.63,6.5068]
[1745567368385,5.12590932,153.67,153.62,11.63320932]
[1745567368884,6.5064,153.65,153.62,11.63320932]
[1745567369084,5.12590932,153.67,153.63,6.507]
[1745567369285,23.2,153.68,153.63,6.507]
[1745567370187,6.5061,153.66,153.63,6.507]
[1745567370483,23.2,153.68,153.63,6.507]
[1745567370782,6.5062,153.65,153.62,6.5072]
[1745567371589,23.2,153.68,153.59,31.20960641]
[1745567371985,6.5067,153.64,153.61,6.5075]
[1745567372989,6.507,153.63,153.61,6.5075]
[1745567373291,11.85520641,153.67,153.59,6.5085]
[1745567373588,6.5079,153.61,153.56,34.96490641]
[1745567374583,23.22,153.63,153.56,34.96490641]
[1745567374887,6.5076,153.62,153.59,6.5087]
[1745567375079,23.22,153.63,153.56,34.96490641]
[1745567375277,29.7273,153.63,153.56,34.96490641]
[1745567375688,29.7273,153.63,153.6,6.5079]
[1745567375883,29.7273,153.63,153.56,34.96490641]
[1745567376791,23.22,153.63,153.56,34.96490641]
[1745567377289,29.7271,153.63,153.56,34.96490641]
[1745567377786,29.7271,153.63,153.6,6.5079]
[1745567377991,29.7272,153.63,153.6,6.5079]
[1745567378187,29.7272,153.63,153.52,23.22]
[1745567378188,23.22,153.63,153.52,23.22]
[1745567378489,6.5086,153.6,153.53,8.00960641]
[1745567378887,6.5086,153.6,153.56,6.5096]
[1745567379089,6.5088,153.59,153.56,6.5096]
[1745567379490,23.22,153.63,153.53,8.00960641]
[1745567379685,8.00960641,153.61,153.53,5.6573]
[1745567379990,8.00960641,153.59,153.53,6.511]
[1745567380190,31.22960641,153.59,153.53,6.511]
[1745567380390,6.5104,153.56,153.53,6.511]
[1745567381992,6.5098,153.57,153.54,6.5107]
[1745567382787,6.5093,153.58,153.51,31.22960641]
[1745567383295,6.5093,153.58,153.55,6.51]
[1745567384691,23.22,153.59,153.51,23.22]
[1745567384893,23.22,153.62,153.55,8.00960641]
[1745567385093,23.22,153.62,153.57,6.5095]
[1745567385394,6.5086,153.6,153.57,6.5095]
[1745567385899,6.5089,153.59,153.56,6.5099]
[1745567388399,6.5089,153.59,153.57,6.5095]
[1745567390803,6.5085,153.6,153.57,6.5095]
[1745567391007,23.22,153.62,153.57,8.00960641]
[1745567391698,6.5081,153.61,153.57,8.00960641]
[1745567391898,23.22,153.62,153.57,8.00960641]
[1745567392102,6.5081,153.61,153.58,6.5089]
[1745567392803,6.5083,153.6,153.58,6.5089]
[1745567398809,6.5083,153.6,153.57,8.00960641]
[1745567399309,6.5083,153.6,153.58,5.12819397]
[1745567400207,23.22,153.62,153.58,5.12819397]
[1745567400405,6.5081,153.61,153.6,5.12819397]
[1745567400710,23.22,153.62,153.58,5.12819397]
[1745567400911,6.5086,153.6,153.58,5.12819397]
[1745567401611,6.5087,153.59,153.58,5.12819397]
[1745567402001,3.8889,153.65,153.58,5.12819397]
[1745567402206,6.5067,153.64,153.63,5.12819397]
[1745567405410,31.6918,153.66,153.63,5.12819397]
[1745567405608,27.1021,153.69,153.65,5.12819397]
[1745567405912,27.1021,153.69,153.65,11.63409397]
[1745567406210,6.505,153.68,153.65,11.63409397]
[1745567406511,33.6069,153.69,153.66,6.5057]
[1745567406712,29.7248,153.69,153.66,6.5057]
[1745567406909,23.22,153.69,153.65,5.12819397]
[1745567407411,6.5051,153.68,153.65,11.63399397]
[1745567408110,6.5051,153.68,153.67,5.12819397]
[1745567408310,23.22,153.69,153.67,5.12819397]
[1745567408505,6.5043,153.7,153.67,5.12819397]
[1745567409314,6.5043,153.7,153.68,6.5049]
[1745567410210,6.5043,153.7,153.67,11.63329397]
[1745567410813,6.5045,153.69,153.67,11.63329397]
[1745567411110,28.34819397,153.72,153.67,11.63329397]
[1745567411312,6.5043,153.7,153.67,11.63329397]
[1745567411513,6.5043,153.7,153.68,6.5048]
[1745567412411,6.5043,153.7,153.67,11.63329397]
[1745567412808,6.5043,153.7,153.67,5.12819397]
[1745567413413,6.5046,153.69,153.67,11.63339397]
[1745567413615,28.34819397,153.72,153.67,11.63339397]
[1745567414005,6.5045,153.69,153.67,11.63339397]
[1745567414814,6.5045,153.69,153.67,6.5052]
[1745567415315,5.12819397,153.68,153.64,23.22]
[1745567415516,5.12819397,153.68,153.63,5.12819397]
[1745567415918,6.506,153.66,153.63,11.63499397]
[1745567416119,5.12819397,153.68,153.62,5.12819397]
[1745567416520,6.5061,153.66,153.63,6.5068]
[1745567417321,28.32819397,153.68,153.62,5.12819397]
[1745567417922,23.2,153.68,153.64,5.12819397]
[1745567418117,5.12819397,153.71,153.66,5.12819397]